Cogmind - Beta 11.1 @@@ ROGUE MODE // 2022.05.26 @ 16:55:02 Player: btmk16 Result: Destroyed by H-66 Slayer with Gauss Rifle Performance ------------- Evolutions (5) 2500 Regions Visited (16) 3200 Robots Destroyed (201) 1005 Value Destroyed (7303) 7303 Prototype IDs (43) 860 Alien Tech Used (0) 0 Bonus (2054) 2054 TOTAL SCORE: 16922 Bonus ------- High Alert Combat Kills 661 Follower Combat Kills 959 Aligned with FarCom 300 Met Data Miner 300 Friendly Fire -166 Cogmind --------- Core Integrity 0/1000 Matter 235/300 Energy 310/310 System Corruption 27% Temperature Cool (0) Movement Treading (170) Location -5/Factory Parts ------- > --- POWER (2) -------- Fission Core > --- PROPULSION (5) --- Armored Medium Treads > --- UTILITY (6) ------ (None) > --- WEAPON (4) ------- Plasma Sword > --- INVENTORY (5) ---- Plasma Rifle Guided EMP Blaster Long-range Missile Launcher Peak State ------------ > --- POWER ------------ Neutrino Core Neutrino Core > --- PROPULSION ------- Medium Treads Medium Treads Armored Medium Treads Heavy Treads > --- UTILITY ---------- Advanced Heat Sink Advanced Cooling System Large Storage Unit Layered Heavy Armor Plating Light Regenerative Plating > --- WEAPON ----------- Plasma Rifle Hypervelocity Gauss Rifle KE Penetrator Plasma Sword > --- INVENTORY -------- Armored Treads Armored Treads Medium Treads Long-range Terrain Scanner Advanced Hacking Suite Advanced Hacking Suite Combat Drone Bay Guided EMP Blaster Heavy Rocket Launcher Long-range Missile Launcher Plasma Sword [Rating: 98] Favorites ----------- Power Heavy Deuterium Engine Engine Heavy Deuterium Engine Power Core Neutrino Core Reactor Cold Fusion Reactor Propulsion Medium Treads Treads Medium Treads Leg Carbon-fiber Leg Wheel Armored Huge Wheel Flight Unit Nuclear Pulse Thruster Utility High-capacity Storage Unit Device Improved Cooling System Storage High-capacity Storage Unit Hackware Advanced Hacking Suite Protection Improved Light Armor Plating Weapon Longsword +1 Energy Gun Gatling Laser Energy Cannon Ion Burst Cannon Ballistic Gun Hypervelocity Gauss Rifle Ballistic Cannon Mass Driver Launcher Mini Grenade Launcher Slashing Weapon Longsword +1 Piercing Weapon Spear Build | -11 -10 -10 -9 -9 -9 -8 -8 -7 -7 -7 -6 -6 -6 -6 -5 -5 ------- Run | Scr Mat Min Mat Min Exi Min Mat Fac Low Low Fac Low Low Dat Pro Fac Slots Evolved 10 | . . . 2 . . . 2 2 . . 2 . . . . 2 Power 1 | . . . . . . . . . . . . . . . . 1 Propulsion 3 | . . . . . . . 1 1 . . . . . . . 1 Utility 4 | . . . . . . . 1 1 . . 2 . . . . . Weapon 2 | . . . 2 . . . . . . . . . . . . . Parts Attached 209 | . 13 3 10 1 . 4 15 7 7 3 81 3 4 . 2 56 Power 17 | . . . 1 . . . 1 1 . . 6 . . . . 8 Engine 11 | . . . 1 . . . 1 1 . . 5 . . . . 3 Core 5 | . . . . . . . . . . . . . . . . 5 Reactor 1 | . . . . . . . . . . . 1 . . . . . Propulsion 53 | . 3 1 3 . . . 6 1 2 . 21 . . . . 16 Treads 45 | . 3 1 3 . . . 6 1 2 . 14 . . . . 15 Leg 4 | . . . . . . . . . . . 3 . . . . 1 Wheel 3 | . . . . . . . . . . . 3 . . . . . Hover . | . . . . . . . . . . . . . . . . . Flight 1 | . . . . . . . . . . . 1 . . . . . Utility 67 | . 4 . . . . . 4 2 5 . 28 3 2 . 2 17 Device 36 | . 2 . . . . . 3 1 3 . 15 1 1 . 2 8 Storage 7 | . 2 . . . . . 1 . 1 . 1 2 . . . . Processor . | . . . . . . . . . . . . . . . . . Hackware 2 | . . . . . . . . . . . . . . . . 2 Protection 22 | . . . . . . . . 1 1 . 12 . 1 . . 7 Artifact . | . . . . . . . . . . . . . . . . . Weapon 72 | . 6 2 6 1 . 4 4 3 . 3 26 . 2 . . 15 Energy Gun 16 | . 1 . 3 . . 1 2 2 . 1 5 . . . . 1 Energy Cannon 4 | . . . . . . . . . . . 3 . . . . 1 Ballistic Gun 29 | . 3 1 2 1 . 1 . . . 1 11 . 2 . . 7 Ballistic Cannon 2 | . . . . . . . . . . . 1 . . . . 1 Launcher 11 | . 2 1 . . . 2 1 . . 1 3 . . . . 1 Special Weapon . | . . . . . . . . . . . . . . . . . Impact Weapon . | . . . . . . . . . . . . . . . . . Slashing Weapon 8 | . . . 1 . . . 1 1 . . 2 . . . . 3 Piercing Weapon 2 | . . . . . . . . . . . 1 . . . . 1 Special Melee Weapon . | . . . . . . . . . . . . . . . . . Unidentified Prototypes 7 | . . . . . . . . 1 1 . 4 . . . . 1 Corrupted Parts 2 | . . . . . . . . . . . . . . . . 2 System Corruption 11 | . . . . . . . . . . . . . . . . 11 Parts Lost 51 | . 1 1 . . . 1 5 1 2 . 16 . . . . 24 Power 7 | . . . . . . . 1 . . . 1 . . . . 5 Propulsion 21 | . 1 1 . . . . 2 . 1 . 8 . . . . 8 Utility 12 | . . . . . . 1 . . . . 5 . . . . 6 Weapon 11 | . . . . . . . 2 1 1 . 2 . . . . 5 Highest Loss Streak 7 | . 1 1 . . . 1 3 1 2 . 4 . . . . 7 To Critical Strikes . | . . . . . . . . . . . . . . . . . Average Slot Usage (%) 87 | . 98 100 98 100 100 99 97 91 83 83 84 86 85 86 84 84 Engine 5 | . 14 14 11 11 11 11 8 7 7 7 3 6 6 6 6 1 Core 1 | . . . . . . . . . . . . . . . . 7 Treads 22 | . 27 28 22 22 22 22 26 30 29 30 21 13 13 13 13 22 Wheel 1 | . . . . . . . . . . . . 6 6 6 6 1 Device 10 | . 12 14 11 11 11 10 17 15 7 7 12 5 6 6 6 10 Storage 7 | . 14 14 11 11 11 11 9 7 8 7 5 6 6 6 6 4 Protection 7 | . . . . . . . . 4 1 . 9 20 19 20 17 9 Energy Gun 7 | . 8 . 18 22 22 19 11 17 18 14 2 6 5 . . . Energy Cannon 1 | . . . . . . . . . . . 1 6 5 . . . Ballistic Gun 12 | . 19 26 18 22 22 22 14 . . . 14 6 6 20 20 10 Slashing Weapon 3 | . . . 5 . . . 5 3 7 7 5 . . . . 2 Piercing Weapon 1 | . . . . . . . . . . . . 6 6 6 6 2 Naked Turns 79 | . . . . . . . . . . . 52 . . . . 27 Heaviest Build 102 | 12 29 29 37 35 35 36 59 74 75 75 97 89 89 78 78 102 Greatest Support 153 | 20 40 40 40 40 40 40 84 97 97 92 109 28 28 28 28 153 Greatest Overweight (x) 3 | . . . 1 . . . . . . . 3 3 3 2 2 3 Average Overweight (x) . | . . . . . . . . . . . . 2 2 2 2 . Largest Inventory Capacity 20 | 8 15 15 15 15 15 15 20 20 20 20 20 15 15 15 15 15 Average Capacity 16 | 8 9 15 15 15 15 15 19 20 20 20 18 8 15 15 15 14 Most Carried 20 | 6 10 12 15 15 15 15 20 20 20 20 20 14 15 15 15 15 Average Carried 15 | 6 8 9 13 15 15 15 17 19 19 19 17 7 14 15 14 13 Final Capacity 20 | 8 15 15 15 15 15 15 20 20 20 20 5 15 15 15 15 5 Final Carried 20 | 6 10 10 15 15 15 15 19 20 19 20 5 13 15 15 15 4 Class Distribution -------------------- 35% | Mutant 16% | Scavenger-Mutant 16% | Scavenger-Tank 8% | Skirmisher 6% | Scavenger-Gunner 6% | Scavenger-Skirmisher 3% | Tank Dominant Class ---------------- Mutant | -10/Materials Mutant | -10/Mines Scavenger-Gunner | -9/Materials Scavenger-Gunner | -9/Mines Scavenger-Gunner | -9/Exiles Scavenger-Skirmisher | -8/Mines Assassin | -8/Materials Skirmisher | -7/Factory Mutant | -7/Lower Caves Mutant | -7/Lower Caves Mutant | -6/Factory Scavenger-Tank | -6/Lower Caves Scavenger-Mutant | -6/Lower Caves Scavenger-Tank | -6/Data Miner Scavenger-Tank | -5/Proximity Caves Scavenger-Mutant | -5/Factory Resources | -11 -10 -10 -9 -9 -9 -8 -8 -7 -7 -7 -6 -6 -6 -6 -5 -5 ----------- Run | Scr Mat Min Mat Min Exi Min Mat Fac Low Low Fac Low Low Dat Pro Fac Matter Collected 7164 | 200 238 . 193 56 . 22 424 55 688 57 3041 127 157 . 51 1855 Remotely . | . . . . . . . . . . . . . . . . . Salvage Created 9172 | . 430 65 319 47 . 131 824 118 202 . 3042 . 370 . . 3624 Parts 474 | . 28 3 22 7 . 12 37 10 10 . 147 . 13 . . 185 Haulers Intercepted 10 | . 2 . 1 . . . 1 . . . 3 . . . . 3 Recyclers Shooed 8 | . . . 1 . . . 1 . . . 3 . . . . 3 Parts Field Recycled 7 | . . . . . . . . . . . 7 . . . . . Retrieved Matter 70 | . . . . . . . . . . . 70 . . . . . Parts Self-Destructed 27 | . . . . . . . . . 6 . . 5 7 . 9 . Prevented . | . . . . . . . . . . . . . . . . . Kills | -11 -10 -10 -9 -9 -9 -8 -8 -7 -7 -7 -6 -6 -6 -6 -5 -5 ------- Run | Scr Mat Min Mat Min Exi Min Mat Fac Low Low Fac Low Low Dat Pro Fac Combat Hostiles Destroyed 156 | . 9 18 3 3 . 7 15 1 3 . 45 . 6 . . 46 Melee 30 | . . . 1 . . . 1 1 . . 15 . 2 . . 10 Guns 83 | . 7 . 2 3 . 1 9 . 3 . 26 . 2 . . 30 Cannons 8 | . . . . . . . . . . . 1 . 2 . . 5 AOE 35 | . 2 18 . . . 6 5 . . . 3 . . . . 1 Classes Destroyed 17 | . 5 2 3 . . 1 1 . 1 . 2 . . . . 2 Worker 13 | . 2 . . . . . 1 . . . 4 . . . . 6 Builder 20 | . . . 1 . . . 3 2 . . 5 . . . . 9 Tunneler 2 | . . 1 . . . . . . . . . . . . . 1 Hauler 10 | . 2 . 1 . . . 1 . . . 3 . . . . 3 Recycler 12 | . . . 1 . . 1 3 . . . 3 . . . . 4 Operator 1 | . . . . . . . . . . . . . . . . 1 Watcher 4 | . 1 . 2 . . . 1 . . . . . . . . . Swarmer 25 | . 3 . . 3 . 6 . . . . 8 . . . . 5 Grunt 57 | . 6 . 2 . . . 12 . 2 . 18 . . . . 17 Brawler 1 | . . . . . . . . . . . 1 . . . . . Duelist 4 | . . . . . . . 1 . 1 . 2 . . . . . Sentry 14 | . . . 1 . . . 2 1 . . 5 . . . . 5 Hunter 11 | . . . . . . 1 . . . . 2 . 2 . . 6 Programmer 22 | . . . . . . . . . . . 9 . 1 . . 12 Heavy 1 | . . . . . . . . . . . . . . . . 1 Samaritan 1 | . . . . . . . . . 1 . . . . . . . Assembled 18 | . . 18 . . . . . . . . . . . . . . Butcher 4 | . . . . . . . . . . . . . 4 . . . Best Kill Streak 19 | . 6 19 4 3 . 3 14 1 3 . 5 . 1 . . 10 Combat Bots Only 18 | . 3 18 1 3 . 3 10 1 3 . 5 . 1 . . 6 Max Kills in Single Turn 4 | . 3 4 1 2 . 3 3 1 1 . 2 . 1 . . 2 Gunslinging 1 | . . . . 1 . . 1 . . . . . . . . 1 Exploded 4 | . 2 4 . . . 3 2 . . . 2 . . . . 1 Melee 1 | . . . 1 . . . 1 1 . . 1 . 1 . . 1 Uniques/NPCs Destroyed . | . . . . . . . . . . . . . . . . . Combat | -11 -10 -10 -9 -9 -9 -8 -8 -7 -7 -7 -6 -6 -6 -6 -5 -5 -------- Run | Scr Mat Min Mat Min Exi Min Mat Fac Low Low Fac Low Low Dat Pro Fac Damage Taken 14704 | . 478 245 14 37 . 64 1233 78 359 . 3964 . 630 . . 7602 Core 2270 | . 95 52 . . . . 229 28 35 . 677 . 153 . . 1001 Absorbed by Shields 421 | . . . . . . . . . . . 421 . . . . . Reduced by Siege Mode 15 | . . . . . . . . . . . . . . . . 15 Redirected to Shielding 23 | . . . . . . . . . . . 23 . . . . . Regen/Repaired (Parts) 274 | . . . . . . . . . . . . . . . . 274 Core Remaining (%) 65 | 100 . 41 . . . 100 58 . . 91 . . . . 2 . Volleys Fired 370 | . 48 9 5 3 . 6 45 3 11 . 91 . 13 . . 136 Largest 4 | . 2 2 4 4 . 4 3 3 3 . 3 . 3 . . 4 Hottest 265 | . 70 40 149 149 . 149 149 184 208 . 265 . 218 . . 147 Shots Fired 857 | . 76 10 18 12 . 12 116 7 23 . 255 2 41 . . 285 Gun 728 | . 71 2 18 12 . 8 108 7 23 . 238 2 26 . . 213 Cannon 95 | . . . . . . . . . . . 13 . 15 . . 67 Launcher 34 | . 5 8 . . . 4 8 . . . 4 . . . . 5 Special . | . . . . . . . . . . . . . . . . . Kinetic 604 | . 53 2 10 6 . 4 53 . . . 217 1 13 . . 245 Thermal 210 | . 18 . 8 6 . 4 55 7 23 . 25 1 28 . . 35 Explosive 34 | . 5 8 . . . 4 8 . . . 4 . . . . 5 Electromagnetic 9 | . . . . . . . . . . . 9 . . . . . Robot Hit Streak 19 | . 10 3 3 3 . 8 9 5 12 . 19 . 8 . . 13 Robot Miss Streak 7 | . 3 1 3 4 . 1 3 1 2 . 5 . 7 . . 6 Penetration Max 1 | . . . . . . . . . . . 1 . 1 . . 1 Secondary Targets 8 | . . . . 1 . . 2 . . . 2 . . . . 3 Max Gunslinging Chain 1 | . . . . 1 . . 1 . . . 1 . . . . 1 Shots Hit Robots 676 | . 52 6 14 5 . 6 88 9 22 . 227 . 23 . . 224 Core Hits 390 | . 30 31 12 4 . 8 44 4 10 . 111 . 13 . . 123 Critical Kills 17 | . . . . . . . . . . . 5 . 1 . . 11 Critical Parts Destroyed 19 | . 1 . . . . . . . . . 4 . . . . 14 Critical Strikes 61 | . 2 . . . . . 4 1 . . 13 . 4 . . 37 Burn 10 | . 1 . . . . . 3 1 . . . . 3 . . 2 Destroy 36 | . 1 . . . . . . . . . 9 . 1 . . 25 Blast 2 | . . . . . . . . . . . . . . . . 2 Sever 7 | . . . . . . . 1 . . . 2 . . . . 4 Impale 6 | . . . . . . . . . . . 2 . . . . 4 Melee Attacks 257 | . . . 6 . . . 11 5 3 5 108 . 5 . . 114 Impact . | . . . . . . . . . . . . . . . . . Slashing 185 | . . . 6 . . . 11 5 3 5 88 . . . . 67 Piercing 72 | . . . . . . . . . . . 20 . 5 . . 47 Sneak Attacks 38 | . . . 3 . . . 3 2 2 . 16 . . . . 12 Combat Hostiles . | . . . . . . . . . . . . . . . . . Follow-up Attacks . | . . . . . . . . . . . . . . . . . Damage Inflicted 22436 | . 652 1216 450 70 . 431 2584 323 583 . 7386 16 558 . . 8167 Guns 9122 | . 498 7 131 70 . 58 1112 95 335 . 3495 16 182 . . 3123 Cannons 1268 | . . . . . . . . . . . 27 . 304 . . 937 Explosions 4815 | . 154 1209 . . . 357 988 . . . 591 . . . . 1516 Melee 7150 | . . . 279 . . . 484 228 248 . 3254 . 72 . . 2585 Ramming 81 | . . . 40 . . 16 . . . . 19 . . . . 6 Kinetic 7697 | . 361 7 76 41 . 18 593 . . . 3180 . 48 . . 3373 Thermal 2932 | . 137 . 55 29 . 40 519 95 335 . 227 16 438 . . 1041 Explosive 4426 | . 154 1209 . . . 357 988 . . . 556 . . . . 1162 Electromagnetic 150 | . . . . . . . . . . . 150 . . . . . Impact . | . . . . . . . . . . . . . . . . . Slashing 6002 | . . . 279 . . . 484 228 248 . 2663 . . . . 2100 Piercing 1148 | . . . . . . . . . . . 591 . 72 . . 485 Highest Corruption 27 | . . . . . . . . . . . 6 6 6 6 6 27 Average Corruption 5 | . . . . . . . . . . . 5 6 6 6 4 5 Corruption Purged 4 | . . . . . . . . . . . . . . . 4 . Corruption Blocked . | . . . . . . . . . . . . . . . . . Effects 230 | . . . . . . . . . . . 63 33 31 2 6 95 Message Errors 61 | . . . . . . . . . . . 23 8 8 . 1 21 Matter Fused 54 | . . . . . . . . . . . 12 7 7 2 2 24 Heat Flow Errors 24 | . . . . . . . . . . . 9 3 1 . . 11 Energy Discharges 22 | . . . . . . . . . . . 4 7 5 . . 6 Parts Rejected 2 | . . . . . . . . . . . . . . . . 2 Data Loss (minor) 35 | . . . . . . . . . . . 9 4 4 . 1 17 Data Loss (major) 9 | . . . . . . . . . . . 1 2 2 . 1 3 Misfires 11 | . . . . . . . . . . . 3 2 3 . . 3 Alerts 1 | . . . . . . . . . . . . . . . 1 . Misdirections 2 | . . . . . . . . . . . . . . . . 2 Weapon Failures 9 | . . . . . . . . . . . 2 . 1 . . 6 Overload Shots . | . . . . . . . . . . . . . . . . . Overflow Damage 1250 | . . 66 4 . . 43 100 . 126 . 436 . . . . 475 Projectiles 27 | . . . . . . . . . . . . . . . . 27 Explosions 234 | . . 66 . . . 43 . . . . 18 . . . . 107 Melee 989 | . . . 4 . . . 100 . 126 . 418 . . . . 341 Knockbacks 12 | . . . 1 . . . . . . . . . . . . 11 Impact 1 | . . . 1 . . . . . . . . . . . . . Kinetic 9 | . . . . . . . . . . . . . . . . 9 Secondary 2 | . . . . . . . . . . . . . . . . 2 Self-Inflicted Damage 678 | . 60 61 . . . 26 84 . . . . . . . . 447 Shots 15 | . 2 2 . . . 1 2 . . . . . . . . 8 Rammed 7 | . . . 4 . . 2 . . . . 1 . . . . . Targets Rammed 9 | . . . 4 . . 3 . . . . 1 . . . . 1 Kicked . | . . . . . . . . . . . . . . . . . Crushed 2 | . . . . . . 1 . . . . . . . . . 1 Highest Temperature 595 | . 82 1 72 72 . 72 15 36 303 . 315 256 595 . . 276 Average Temperature 119 | . 20 1 41 32 . 41 8 19 172 . 92 109 211 . . 79 Received Heat Transfer 3132 | . 213 20 9 . . . 549 18 135 . 753 . . . . 1435 Effects 16 | . . . . . . . . . 1 . . . 15 . . . Shutdowns 3 | . . . . . . . . . . . . . 3 . . . Energy Bleed 1 | . . . . . . . . . . . . . 1 . . . Interference 5 | . . . . . . . . . 1 . . . 4 . . . Damage (minor) 2 | . . . . . . . . . . . . . 2 . . . Damage (major) 4 | . . . . . . . . . . . . . 4 . . . Damage (core) 1 | . . . . . . . . . . . . . 1 . . . Siege Activations 1 | . . . . . . . . . . . . . . . . 1 Total Turns 6 | . . . . . . . . . . . . . . . . 6 Longest Duration 6 | . . . . . . . . . . . . . . . . 6 Robots Corrupted . | . . . . . . . . . . . . . . . . . Combat Hostiles . | . . . . . . . . . . . . . . . . . Parts Fried 2 | . . . . . . . . . . . 2 . . . . . Impact Corruptions . | . . . . . . . . . . . . . . . . . Robots Melted . | . . . . . . . . . . . . . . . . . Combat Hostiles . | . . . . . . . . . . . . . . . . . Parts Melted 15 | . . . 2 . . . 2 . 3 . 1 . 4 . . 3 Heat Transferred 6620 | . 481 . 148 74 . 111 1406 296 767 . 475 12 1000 . . 1850 Parts Sabotaged 3 | . . . . . . . . . . . 3 . . . . . Parts Stolen . | . . . . . . . . . . . . . . . . . Parts Stripped . | . . . . . . . . . . . . . . . . . Power Chain Reactions . | . . . . . . . . . . . . . . . . . Missiles Intercepted . | . . . . . . . . . . . . . . . . . Alert | -11 -10 -10 -9 -9 -9 -8 -8 -7 -7 -7 -6 -6 -6 -6 -5 -5 ------- Run | Scr Mat Min Mat Min Exi Min Mat Fac Low Low Fac Low Low Dat Pro Fac Peak Influence 1333 | . 313 215 339 206 . 114 398 154 . . 1333 . . . . 926 Initial 132 | . . 121 83 132 . . 29 112 . . . . . . . 114 Average 271 | . 90 207 104 100 . 23 105 86 . . 418 . . . . 276 Maximum Alert Level 4 | . 1 1 1 1 . . 1 . . . 4 . . . . 3 Low Security (%) 56 | 100 76 9 93 79 . 100 79 100 . . 44 . . . . 42 Level 1 23 | . 23 90 6 20 . . 20 . . . 17 . . . . 42 Level 2 7 | . . . . . . . . . . . 12 . . . . 11 Level 3 7 | . . . . . . . . . . . 16 . . . . 3 Level 4 3 | . . . . . . . . . . . 9 . . . . . Level 5 . | . . . . . . . . . . . . . . . . . High Security . | . . . . . . . . . . . . . . . . . Max Security . | . . . . . . . . . . . . . . . . . Squads Dispatched 44 | . 2 . 2 . . . 1 . . . 20 . . . . 19 Investigation 4 | . . . . . . . . . . . 1 . . . . 3 Extermination 15 | . . . . . . . . . . . 9 . . . . 6 Reinforcement 21 | . 2 . 2 . . . 1 . . . 7 . . . . 9 Assault 4 | . . . . . . . . . . . 3 . . . . 1 Garrison . | . . . . . . . . . . . . . . . . . Intercept . | . . . . . . . . . . . . . . . . . Searches Triggered . | . . . . . . . . . . . . . . . . . Data Miner Redirects 1 | . . . . . . . . . . . . . . . . 1 Construction Impeded 6 | . . . . . . . 1 . . . 1 . . . . 4 Haulers Reinforced 5 | . . . . . . . . . . . 2 . . . . 3 Active Scanning Responses . | . . . . . . . . . . . . . . . . . Cargo Convoy Interrupts 1 | . . . . . . . . . . . 1 . . . . . Stealth | -11 -10 -10 -9 -9 -9 -8 -8 -7 -7 -7 -6 -6 -6 -6 -5 -5 --------- Run | Scr Mat Min Mat Min Exi Min Mat Fac Low Low Fac Low Low Dat Pro Fac Distress Signals 11 | . 1 . 1 . . . 2 . . . 3 . . . . 4 Communications Jammed . | . . . . . . . . . . . . . . . . . Distress Signals . | . . . . . . . . . . . . . . . . . Times Spotted 248 | . 17 18 13 3 . 6 21 3 3 . 75 2 9 . 6 72 Peak Tracking Total 10 | . 4 10 3 3 . 3 6 1 3 . 5 1 4 . 5 7 Tactical Retreats 14 | . 1 . . . . . 1 . . . 1 . . . 3 8 Traps | -11 -10 -10 -9 -9 -9 -8 -8 -7 -7 -7 -6 -6 -6 -6 -5 -5 ------- Run | Scr Mat Min Mat Min Exi Min Mat Fac Low Low Fac Low Low Dat Pro Fac Traps Triggered 9 | . . . 1 . . . . . . . 5 . . . . 3 Indirectly . | . . . . . . . . . . . . . . . . . Trap Hack Attempts . | . . . . . . . . . . . . . . . . . Triggered . | . . . . . . . . . . . . . . . . . Disarmed . | . . . . . . . . . . . . . . . . . Reprogrammed . | . . . . . . . . . . . . . . . . . Reused . | . . . . . . . . . . . . . . . . . Traps Extracted . | . . . . . . . . . . . . . . . . . Installed 4 | . . 4 . . . . . . . . . . . . . . Triggered 2 | . . . . . . . . . . . 2 . . . . . Most Traps Carried 3 | . . 3 . . . . . . . . . . . . . . Machines | -11 -10 -10 -9 -9 -9 -8 -8 -7 -7 -7 -6 -6 -6 -6 -5 -5 ---------- Run | Scr Mat Min Mat Min Exi Min Mat Fac Low Low Fac Low Low Dat Pro Fac Machines Disabled 24 | . 2 . . . . . 1 . . . 6 . . . . 15 Max in Single Turn 4 | . 2 . . . . . 1 . . . 3 . . . . 4 Garrison Access 1 | . . . . . . . . . . . . . . . . 1 Machines Sabotaged . | . . . . . . . . . . . . . . . . . Garrisons Compromised 1 | . . . . . . . . . . . 1 . . . . . Overloaded Fab Kills . | . . . . . . . . . . . . . . . . . Hacking | -11 -10 -10 -9 -9 -9 -8 -8 -7 -7 -7 -6 -6 -6 -6 -5 -5 --------- Run | Scr Mat Min Mat Min Exi Min Mat Fac Low Low Fac Low Low Dat Pro Fac Machines Accessed 38 | . 5 . . . 1 . 2 1 2 1 10 . . 4 . 12 Terminals 22 | . 4 . . . . . 2 1 1 . 6 . . . . 8 Fabricators 4 | . . . . . . . . . . . 2 . . . . 2 Repair Stations 1 | . . . . . . . . . . . 1 . . . . . Recycling Units 2 | . 1 . . . . . . . . . . . . . . 1 Scanalyzers . | . . . . . . . . . . . . . . . . . Garrison Access 2 | . . . . . . . . . . . 1 . . . . 1 Total Hacks 107 | . 15 . . . 1 . 4 1 2 1 20 . . 31 . 32 Successful 67 | . 5 . . . 1 . 3 . 2 1 8 . . 31 . 16 Failed 40 | . 10 . . . . . 1 1 . . 12 . . . . 16 Catastrophic 7 | . . . . . . . 1 1 . . 2 . . . . 3 Database Lockouts . | . . . . . . . . . . . . . . . . . Manual 16 | . 6 . . . 1 . 1 . . . 3 . . . . 5 Terminals 55 | . 13 . . . . . 4 1 1 . 12 . . . . 24 Fabricators 9 | . . . . . . . . . . . 4 . . . . 5 Repair Stations 3 | . . . . . . . . . . . 3 . . . . . Recycling Units 4 | . 2 . . . . . . . . . . . . . . 2 Scanalyzers . | . . . . . . . . . . . . . . . . . Garrison Access 2 | . . . . . . . . . . . 1 . . . . 1 Terminal Hacks 57 | . 4 . . . 1 . 3 . 2 1 5 . . 31 . 10 Record 12 | . . . . . . . . . 1 . . . . 11 . . Part Schematic 10 | . . . . . . . . . . . . . . 10 . . Robot Schematic 7 | . . . . . . . . . . . . . . 7 . . Robot Analysis 1 | . 1 . . . . . . . . . . . . . . . Prototype ID Bank 5 | . . . . . . . . . . . 1 . . 3 . 1 Open Door 2 | . . . . . . . . . 1 1 . . . . . . Branch Access Points 3 | . 1 . . . . . 1 . . . . . . . . 1 Alert Level 7 | . . . . . . . 1 . . . 3 . . . . 3 Unreport Threat 3 | . . . . . . . . . . . . . . . . 3 Dispatch Records 1 | . 1 . . . . . . . . . . . . . . . Hauler Manifests 4 | . 1 . . . . . . . . . 1 . . . . 2 Zone Layout 1 | . . . . . . . 1 . . . . . . . . . EX-Prototype ID Bank 1 | . . . . . 1 . . . . . . . . . . . Fabricator Hacks 5 | . . . . . . . . . . . 1 . . . . 4 Network Status 1 | . . . . . . . . . . . 1 . . . . . Load Schematic 2 | . . . . . . . . . . . . . . . . 2 Build 2 | . . . . . . . . . . . . . . . . 2 Repair Station Hacks 1 | . . . . . . . . . . . 1 . . . . . Scan Component 1 | . . . . . . . . . . . 1 . . . . . Recycling Unit Hacks 2 | . 1 . . . . . . . . . . . . . . 1 Retrieve Components 2 | . 1 . . . . . . . . . . . . . . 1 Scanalyzer . | . . . . . . . . . . . . . . . . . Garrison Access Hacks 1 | . . . . . . . . . . . . . . . . 1 Seal Access 1 | . . . . . . . . . . . . . . . . 1 Unauthorized Hacks 1 | . . . . . . . . . . . 1 . . . . . Terminals . | . . . . . . . . . . . . . . . . . Fabricators 1 | . . . . . . . . . . . 1 . . . . . Fabnet 1 | . . . . . . . . . . . 1 . . . . . Repair Stations . | . . . . . . . . . . . . . . . . . Recycling Units . | . . . . . . . . . . . . . . . . . Scanalyzers . | . . . . . . . . . . . . . . . . . Garrison Access . | . . . . . . . . . . . . . . . . . Data Cores Recovered . | . . . . . . . . . . . . . . . . . Used . | . . . . . . . . . . . . . . . . . Hacking Detections 28 | . 5 . . . . . 2 1 1 . 10 . . . . 9 Full Trace Events 3 | . . . . . . . . . . . . . . . . 3 Feedback Events . | . . . . . . . . . . . . . . . . . Feedback Blocked . | . . . . . . . . . . . . . . . . . Robot Schematics Acquired 7 | . . . . . . . . . . . . . . 7 . . Robots Built . | . . . . . . . . . . . . . . . . . Authchips . | . . . . . . . . . . . . . . . . . Time . | . . . . . . . . . . . . . . . . . Total Robot Build Rating . | . . . . . . . . . . . . . . . . . Part Schematics Acquired 10 | . . . . . . . . . . . . . . 10 . . Parts Built 2 | . . . . . . . . . . . . . . . . 2 Authchips . | . . . . . . . . . . . . . . . . . Time 245 | . . . . . . . . . . . . . . . . 245 Total Part Build Rating 11 | . . . . . . . . . . . . . . . . 11 Parts Repaired . | . . . . . . . . . . . . . . . . . Time . | . . . . . . . . . . . . . . . . . Parts Recycled . | . . . . . . . . . . . . . . . . . Recycled Matter . | . . . . . . . . . . . . . . . . . Retrieved Matter . | . . . . . . . . . . . . . . . . . Retrieved Components 4 | . 1 . . . . . . . . . . . . . . 3 Parts Scanalyzed . | . . . . . . . . . . . . . . . . . Part Schematics Acquired . | . . . . . . . . . . . . . . . . . Parts Damaged . | . . . . . . . . . . . . . . . . . Bothacking | -11 -10 -10 -9 -9 -9 -8 -8 -7 -7 -7 -6 -6 -6 -6 -5 -5 ------------ Run | Scr Mat Min Mat Min Exi Min Mat Fac Low Low Fac Low Low Dat Pro Fac Used RIF Installer . | . . . . . . . . . . . . . . . . . Robots Hacked 2 | . . . . . . . . . . . . . . . . 2 Non-combat . | . . . . . . . . . . . . . . . . . Combat 2 | . . . . . . . . . . . . . . . . 2 Robot Hacks Applied . | . . . . . . . . . . . . . . . . . Relay Couplers Released 3 | . . . . . . . . . . . 3 . . . . . Programmers 3 | . . . . . . . . . . . 3 . . . . . Fabnet Peak Effective % 3 | . . . . . . . . . . . . . . . 3 3 Autooverrided 2 | . . . . . . . . . . . . . . . . 2 Robots Rewired 1 | . . . . . . . . . . . . . 1 . . . Allies Hacked . | . . . . . . . . . . . . . . . . . Hacks Repelled . | . . . . . . . . . . . . . . . . . Allies | -11 -10 -10 -9 -9 -9 -8 -8 -7 -7 -7 -6 -6 -6 -6 -5 -5 -------- Run | Scr Mat Min Mat Min Exi Min Mat Fac Low Low Fac Low Low Dat Pro Fac Total Allies 10 | . . . . 2 . . . . . . 1 . 1 . 1 5 Largest Group 3 | . . . . 2 2 . . . . . 1 1 1 . 1 3 Highest-Rated Group 99 | . . . . 47 47 . . . . . 99 95 94 . 96 93 Highest-Rated Ally 99 | . . . . 31 31 . . . . . 99 95 94 . 96 54 Total Orders 4 | . . . . . . . . . . . . 3 1 . . . FOLLOW 1 | . . . . . . . . . . . . 1 . . . . EXPLORE 3 | . . . . . . . . . . . . 2 1 . . . Ally Attacks 116 | . . . . . . . . . . . 31 7 13 . 8 57 Total Damage 4377 | . . . . . . . . . . . 1994 245 555 . 325 1258 Kills 36 | . . . . . . . . . . . 18 4 2 . 4 8 Allies Corrupted 1 | . . . . . . . . . . . . . 1 . . . Allies Melted . | . . . . . . . . . . . . . . . . . Intel | -11 -10 -10 -9 -9 -9 -8 -8 -7 -7 -7 -6 -6 -6 -6 -5 -5 ------- Run | Scr Mat Min Mat Min Exi Min Mat Fac Low Low Fac Low Low Dat Pro Fac Robot Analysis Total 1 | . 1 . . . . . . . . . . . . . . . Derelict Logs Recovered 9 | . . 1 . 1 . . . . 1 1 . 1 2 . 2 . Drone Launches 5 | . . . . . . . . . . . . 2 1 . . 2 Drone Recoveries 1 | . . . . . . . . . . . . 1 . . . . Exploration | -11 -10 -10 -9 -9 -9 -8 -8 -7 -7 -7 -6 -6 -6 -6 -5 -5 ------------- Run | Scr Mat Min Mat Min Exi Min Mat Fac Low Low Fac Low Low Dat Pro Fac Turns Passed 20110 | 3 1191 222 616 636 399 778 833 672 1420 676 5961 1230 1013 101 305 4054 Spaces Moved 9899 | 3 620 105 343 386 249 357 323 385 826 400 2758 626 587 78 223 1630 Core 203 | . . . . . . . . . . . 96 . . . . 107 Treads 7425 | . 615 105 343 386 249 357 323 385 826 400 2198 . . . . 1238 Legs 32 | 3 5 . . . . . . . . . 24 . . . . . Wheels 2140 | . . . . . . . . . . . 341 626 587 78 223 285 Hover . | . . . . . . . . . . . . . . . . . Flight 99 | . . . . . . . . . . . 99 . . . . . Fastest Speed 40 | 120 120 160 160 160 160 160 160 160 160 160 40 130 130 130 130 50 Average Speed 154 | 120 159 160 160 160 160 160 160 160 160 160 158 135 136 130 130 155 Slowest Speed 330 | 120 160 160 240 160 160 160 160 160 160 160 320 145 145 130 130 330 Overloaded Moves . | . . . . . . . . . . . . . . . . . Propulsion Burnouts . | . . . . . . . . . . . . . . . . . Robots Hopped . | . . . . . . . . . . . . . . . . . Cave-ins Triggered 1 | . . . . . . . . . . . . . . . . 1 Exploration Rate (%) 52 | 2 90 23 29 83 61 81 25 11 80 44 56 95 67 68 37 44 Regions Visited 16 Branch Regions 10 Pre-discovered Areas 6 | . . 1 . 1 . . . . . 1 . . 1 1 1 . Known Exits Taken 2 | . 1 . . . . . . . 1 . . . . . . . Unknown Exits Taken 14 | 1 . 1 1 1 1 1 1 1 . 1 1 1 1 1 1 . Scrap Searched 18 | . . . . 1 . . . . 3 3 . 5 5 . 1 . Spaces Dug 122 | . 12 21 1 . . . 2 2 . . 38 . 1 . . 45 Terrain Destroyed 541 | . 54 53 1 . . 36 57 2 . . 66 . 1 . . 271 Melee 80 | . . . 1 . . . 2 2 . . 38 . 1 . . 36 Projectile 61 | . . . . . . . . . . . . . . . . 61 AOE 399 | . 54 53 . . . 36 55 . . . 27 . . . . 174 Terrain Rammed . | . . . . . . . . . . . . . . . . . Walls Destroyed . | . . . . . . . . . . . . . . . . . Machines Disabled . | . . . . . . . . . . . . . . . . . Actions | -11 -10 -10 -9 -9 -9 -8 -8 -7 -7 -7 -6 -6 -6 -6 -5 -5 --------- Run | Scr Mat Min Mat Min Exi Min Mat Fac Low Low Fac Low Low Dat Pro Fac Total 13685 | 2 754 150 389 398 252 553 542 431 904 432 4056 1011 757 77 239 2738 Wait 2703 | . 57 23 11 8 . 183 125 20 39 19 948 369 130 . 10 761 Move 9883 | 2 619 104 342 385 248 356 322 384 825 399 2757 625 586 77 222 1630 Hop . | . . . . . . . . . . . . . . . . . Pick Up 99 | . 9 4 6 . 2 . 14 6 8 3 19 10 4 . 2 12 Fast Attach 92 | . 2 . 4 . . . 2 5 . 2 50 1 4 . . 22 Attach 53 | . 1 1 2 . . . 5 1 7 1 15 . . . 1 19 Detach 12 | . . . 1 . . . . . 1 . 7 . . . 1 2 Swap 64 | . 10 2 4 1 . 4 8 1 . . 16 2 . . 1 15 Drop 129 | . 8 3 4 1 2 1 10 6 9 3 44 4 6 . 2 26 Fire 370 | . 48 9 5 3 . 6 45 3 11 . 91 . 13 . . 136 Melee 257 | . . . 6 . . . 11 5 3 5 108 . 5 . . 114 Ram . | . . . . . . . . . . . . . . . . . Kick . | . . . . . . . . . . . . . . . . . Crush 9 | . . . 4 . . 3 . . . . 1 . . . . 1 Escape Stasis . | . . . . . . . . . . . . . . . . . Rewire 10 | . . . . . . . . . 1 . . . 9 . . . Trap 4 | . . 4 . . . . . . . . . . . . . . Miscellaneous . | . . . . . . . . . . . . . . . . . Route ------- -11/Scrapyard -10/Materials (discovered 5 exits: [*Mat x3] / *Min x2) -10/Mines -9/Materials (discovered 2 exits: [*Min x2]) -9/Mines (discovered 3 exits: *Mat / *Exi / [*Zio]) -9/Exiles (discovered 2 exits: [*Min x2]) -8/Mines -8/Materials -7/Factory (discovered 3 exits: *Fac / *Low x2) -7/Lower Caves -7/Lower Caves -6/Factory -6/Lower Caves -6/Lower Caves -6/Data Miner -5/Proximity Caves -5/Factory (discovered 2 exits: *Upp x2) History --------- Turn | Location | Event 1 | -11/Scrapyard | Discovered new exit (range 2) 4 | -11/Scrapyard | Entered Materials 64 | -10/Materials | Discovered new exit (range 11) 209 | -10/Materials | Discovered new exit (range 16) 313 | -10/Materials | Build established: Mutant 469 | -10/Materials | Discovered new exit (range 13) 604 | -10/Materials | Discovered new exit (range 3) 1004 | -10/Materials | Identified exit to Mines 1074 | -10/Materials | Discovered new exit (range 7) 1195 | -10/Materials | Entered Mines 1196 | -10/Mines | Assembled infested the area 1213 | -10/Mines | Core integrity fell below 50% 1244 | -10/Mines | Destroyed 18 combat bots 1291 | -10/Mines | Found a hidden stash of uninstalled traps 1346 | -10/Mines | Learned location of Zion (-7) 1373 | -10/Mines | A weapon hastily lodged in a ceiling crevice suddenly fell to the ground 1404 | -10/Mines | Discovered new exit (range 8) 1417 | -10/Mines | Entered Materials 1417 | -9/Materials | Evolved 2 slots: Weapon x2 1419 | -9/Materials | Discovered new exit (range 7) 1742 | -9/Materials | Discovered new exit (range 16) 2014 | -9/Materials | Build established: Scavenger-Gunner 2033 | -9/Materials | Entered Mines 2054 | -9/Mines | Learned Materials garrison access intel 2162 | -9/Mines | Learned location of Storage (-7) 2558 | -9/Mines | Discovered new exit (range 9) 2609 | -9/Mines | A Derelict revealed a hidden shortcut to a safe place 2662 | -9/Mines | Deemed a non-threat by the Exiles lab entrance 2662 | -9/Mines | Discovered new exit (range 5) 2669 | -9/Mines | Entered Exiles 2669 | -9/Exiles | Accompanied by 2 allies 2690 | -9/Exiles | Discovered new exit (range 15) 2699 | -9/Exiles | Led the pair of lost Derelicts to a safe place 2709 | -9/Exiles | Met 8R-AWN 2735 | -9/Exiles | Met EX-HEX 2781 | -9/Exiles | Met EX-BIN 2801 | -9/Exiles | Aligned with FarCom system 2802 | -9/Exiles | Given EX-Vault access code 2850 | -9/Exiles | Opened EX-Vault 2863 | -9/Exiles | Found Longsword +1 2896 | -9/Exiles | Warned to stay clear of 0b10 Research branches 2944 | -9/Exiles | Met EX-DEC 3055 | -9/Exiles | Discovered new exit (range 10) 3068 | -9/Exiles | Left Exiles lab with Longsword +1 3068 | -9/Exiles | Entered Mines 3828 | -8/Mines | Discovered new exit (range 12) 3846 | -8/Mines | Entered Materials 3846 | -8/Materials | Evolved 2 slots: Propulsion x1, Utility x1 3847 | -8/Materials | Loaded intel: 1 garrison access location 4275 | -8/Materials | Build established: Assassin 4563 | -8/Materials | Destroyed 10 combat bots 4573 | -8/Materials | Lost 3 parts (1p1n1w) 4600 | -8/Materials | Discovered new exit (range 16) 4679 | -8/Materials | Entered Factory 4679 | -7/Factory | Evolved 2 slots: Propulsion x1, Utility x1 4907 | -7/Factory | Build established: Skirmisher 5089 | -7/Factory | Discovered new exit (range 4) 5196 | -7/Factory | Discovered new exit (range 12) 5310 | -7/Factory | Discovered new exit (range 3) 5351 | -7/Factory | Entered Lower Caves 5391 | -7/Lower Caves | Found Prototype Device 5522 | -7/Lower Caves | Identified Heart of Steel 5724 | -7/Lower Caves | Identified exit to Lower Caves 5809 | -7/Lower Caves | Build established: Gunner 6240 | -7/Lower Caves | Build established: Mutant 6717 | -7/Lower Caves | Encountered a Warlord checkpoint 6771 | -7/Lower Caves | Entered another Lower Caves area 7200 | -7/Lower Caves | Discovered new exit (range 16) 7447 | -7/Lower Caves | Entered Factory 7447 | -6/Factory | Evolved 2 slots: Utility x2 8226 | -6/Factory | Cargo convoy interrupted 8635 | -6/Factory | Build established: Skirmisher 9805 | -6/Factory | Build established: Mutant 11997 | -6/Factory | First assault squad dispatched 12658 | -6/Factory | Spotted B-75 Beast 12669 | -6/Factory | Released all parts (10) 12675 | -6/Factory | Core integrity fell below 50% 12696 | -6/Factory | Heart of Steel transformed into Warbot 12726 | -6/Factory | Lost 4 parts (2n1u1w) 12893 | -6/Factory | Lost 3 parts (1p1n1u) 13337 | -6/Factory | Discovered new exit (range 14) 13394 | -6/Factory | Found Powered Armor 13408 | -6/Factory | Entered Lower Caves 13408 | -6/Lower Caves | Accompanied by 1 ally (Warbot) 13558 | -6/Lower Caves | Build established: Scavenger-Tank 14241 | -6/Lower Caves | Learned Factory security intel 14290 | -6/Lower Caves | Attracted the attention of an 0b10 checkpoint 14551 | -6/Lower Caves | Discovered new exit (range 14) 14638 | -6/Lower Caves | Entered another Lower Caves area 14638 | -6/Lower Caves | Accompanied by 1 ally (Warbot) 14657 | -6/Lower Caves | Attacked by a faux Warlord 14806 | -6/Lower Caves | Learned Factory stockpile data 15083 | -6/Lower Caves | Build established: Scavenger-Mutant 15171 | -6/Lower Caves | Core integrity fell below 20% 15642 | -6/Lower Caves | Discovered new exit (range 4) 15651 | -6/Lower Caves | Entered Data Miner 15651 | -6/Data Miner | Discovered new exit (range 6) 15676 | -6/Data Miner | Met Data Miner 15698 | -6/Data Miner | Learned location of Section 7 (-3) 15698 | -6/Data Miner | Acquired the access code to Warlord's prototype stash 15720 | -6/Data Miner | Received God Mode back door access code from Data Miner 15752 | -6/Data Miner | Entered Proximity Caves 15878 | -5/Proximity Caves | Build established: Scavenger-Tank 15879 | -5/Proximity Caves | Learned Factory terminal intel 15964 | -5/Proximity Caves | Escorted by Enhanced Grunt 15982 | -5/Proximity Caves | Received a Behemoth hack from an annoying Tinkerer 16040 | -5/Proximity Caves | Learned location of Armory (-4) 16047 | -5/Proximity Caves | Discovered new exit (range 8) 16057 | -5/Proximity Caves | Entered Factory 16057 | -5/Factory | Evolved 2 slots: Power x1, Propulsion x1 16060 | -5/Factory | Loaded intel: 26 terminal locations 16495 | -5/Factory | Fabricated Combat Drone Bay (x1) 16995 | -5/Factory | Identified exit to Upper Caves 17415 | -5/Factory | Allied Derelicts emerged from ambush trap array 17631 | -5/Factory | Build established: Scavenger-Mutant 17789 | -5/Factory | Fabricated Lgt. Regenerative Plating? 18024 | -5/Factory | Build established: Scavenger-Tank 18538 | -5/Factory | Crushed by falling debris 18656 | -5/Factory | Build established: Scavenger-Mutant 19357 | -5/Factory | First assault squad dispatched 19377 | -5/Factory | Incoming assault squad redirected 19791 | -5/Factory | System corruption reached 10% 19877 | -5/Factory | Lost 3 parts (1p2n) 19979 | -5/Factory | Lost 7 parts (1p4n2u) 19989 | -5/Factory | Released all parts (10) 19991 | -5/Factory | Core integrity fell below 50% 20006 | -5/Factory | Core integrity fell below 20% 20111 | -5/Factory | Destroyed by H-66 Slayer with Gauss Rifle Last Messages --------------- 20038_ Connecting with Terminal... 20044_ Sneak attack on U-05 Engineer. 20044_ U-05 Engineer destroyed. 20047_ Acquired 19 matter. 20050_ Acquired Arm. Medium Treads. 20053_ Acquired Fission Core. 20054_ System corrupted: Heat flow error (+298). 20062_ Destroyed Tesla Rifle. 20069_ System corrupted: Heat flow error (+238). 20075_ P-70 Sage destroyed. 20085_ #JSI YRFXXX/SOA4WYRN 20085_ P-70 Sage Unknown Special Weapon severed. 20086_ Drone sends a signal. 20092_ P-70 Sage destroyed. 20095_ Acquired 60 matter. 20095_ Slug penetrates Wall. 20096_ Acquired 58 matter. 20098_ Penetrated by Slug. 20105_ Destroyed Phase Shifter. 20105_ Penetrated by Slug. Map ----- +----------------------------------------------------+ | ?????????????????????????# # | | ?????????????????????????# = # """ | | ?????????????????????????# " ""T"" | | ?????????????????????????# + "" "" | | ?????????????????????????# # | | ?????????????????????????# # | | ?????????????????????????# # | | ?????????????????????????# !! # | | ?????????????????????????# !! # """ """ | | ?????????????????????????# # """ """ | | ?????????????????????????# # """ """ | | ?????????????????????????# # | | ??????????????????????????################+####### | | ?????????????????????????????????????????# #?????? | | ????????????????????????????????????? #??# #?????? | | ?????????????????????????????#?????? !#??# #?????? | | ?????????????????????????????# ????? #??# #?????? | | ?????????????????????????????#! """" #??# #?????? | | ?????????????"???????????????# """" #??# #?????? | | ?????????????T???????????????# """" #??# #?????? | | ?????????????"???????????????# """" #??# #?????? | | ???????!?????????????????????? """" #??# #?????? | | ???????????????????????????????? ???## ##????? | | ??????????????????################+###### #????? | | ??????????? !|!h!= T #????? | | ??????????????????#######@############### #????? | | ????????????????????# | != #?????????#####????? | | ????????????????????# * #??????????????????? | | ????????????????????# *** #??????????????????? | | ????????????????????# *** #??????????????????? | | ????????????????????###########??????????????????? | | | | | | | | | | | | | | | | | | | | | | | | | | | | | | | | | | | | | | | +----------------------------------------------------+ Best States ------------- Heat Dissipation 109 Energy Generation 33 Energy Capacity 530 Matter Stores 400 Matter Capacity 400 Sight Range 16 Terrain Scan Range 16 Terrain Scan Density 10 Armor Coverage 1300 Core Shielding 20 Evasion (%) 62 Recoil Reduction 5 Offensive Hacking 28 Item Schematics ----------------- Combat Drone Bay | -6/Data Miner | Free Lgt. Regenerative Plating | -6/Data Miner | Free Enh. Flexi-carbon Leg | -6/Data Miner | Free Prc. Matter Filter | -6/Data Miner | Free Tiamat Missile Launcher | -6/Data Miner | Free Imp. Antigrav System | -6/Data Miner | Free Imp. Cloaking Device | -6/Data Miner | Free Hvy. Disruptor Cannon | -6/Data Miner | Free Adv. Recalibrator | -6/Data Miner | Free Mic. Fission Core | -6/Data Miner | Free Robot Schematics ------------------ L-41 Fighter | -6/Data Miner | Free E-15 Imp | -6/Data Miner | Free R-10 Processor | -6/Data Miner | Free X-72 Disruptor | -6/Data Miner | Free L-61 Swordsman | -6/Data Miner | Free B-60 Warrior | -6/Data Miner | Free M-36 Artificer | -6/Data Miner | Free Fabricated ------------ Combat Drone Bay | x1 | -5/Factory Lgt. Regenerative Plating | x1 | -5/Factory Alien Tech Used ----------------- None Achievements -------------- Exterminator Challenges ------------ None Game ------ Seed BoreAssembledShockpuncher Manual? 0 Play Time 02:09:05 Cumulative 263.3 hours Start 2022.05.26 @ 14:21:06 End 2022.05.26 @ 16:55:02 Sessions 1 Manual Loads 0 Difficulty Rogue Special Mode None Game No. 351 Rogue 351 Adventurer 0 Explorer 0 Win Type - Total 5 Types 4/0/0/1/0/0/0/0/0 Lore% 67 Gallery% 79 Achievement% 57 Wizard Run 0 Options --------- ASCII 0 Keyboard 1 Movement Vi Keybinds 0 Fullscreen 1 Font 18/SmallcapsGlow Map View 76x50 Tactical HUD 1 Map Filters NONE Filters NONE Steam 1 RUN: e83fe437-12f7-426e-a6f7-03454006921a